Workbook

Sheet c-zeta_fk_graph_01
A1: 64 | B1: 64 | C1: 48 | D1: 64 | E1: 74 | F1: 74 | G1: 52 | H1: 58 | I1: 114 | J1: 64 | K1: 56 | L1: 56 | M1: 56 | R1: zeta_fkcz_create_targ_chart.xlsm
A2: 3-25-19
A3: This tab is designed to compare 'target to target' as found on openLevFk_crz_create_target.php. | X3: TAB TO PRINT | AF3: Print this graph for web page. | AW3: end
A4: This tab compares two of our current c-zeta targets that are based on soft-aver-stiff as found in fkc target nu. | AF4: 553 x 290 pixels
B5: id 7, _a
B6: id 3, _b
B9: We built this page so we could create graphs that we can put on website so we could get a visual idea of the differences
B10: between the two c-zeta curves.
B11: CONCLUSLION: This is a good comparison showing the differences.
I15: 4-8-18 This c-zeta is for bv force + mv force and is low at 1ips because we basically removed 2 lbs drag.
A17: --> USE CTRL-A to copy and paste to cell c20, C43
A18: --> This page is done.
A21: k.spring | B21: =K21*2.20462*25.4*12 -> 645.089449 | C21: 3210 | D21: 2015 XCF 350 | F21: 5-18-18 | H21: macro | I21: spr = | K21: 0.96 | L21: 'adjust' value = 1.000
H22: done | I22: levratio = | K22: 0.9
C23: ips | D23: co wogas | E23: reb | F23: r-zeta | G23: cDamp | H23: czeta | I23: c-zeta | J23: c-zeta % | K23: r/c | L23: 1
A24: cDamp | B24: co wogas | G24: coeff | I24: aver a x 1.0 | K24: ratio | M24: extra
A25: coeff | D25: [target] | G25: [target] | I25: [target] | L25: 1 | M25: copy | O25: 1 | P25: 2 | Q25: % diff 1/2
A26: [calc] | B26: [calc] | C26: 0 | L26: [adjust]
A27: =L27*K$22*SQRT(4*85*B$21/32.2)/12 -> 0.916103349 | B27: =A27*C27 -> 0.916103349 | C27: 1 | D27: 2.9161 | G27: 0.9161 | I27: 0.148 | L27: 0.148 | M27: 0.148 | O27: =I27*$L$25 -> 0.148 | P27: =I50 -> 0.1474 | Q27: =(O27/P27) -> 1.004070556 | S27: 0.155
A28: =L28*K$22*SQRT(4*85*B$21/32.2)/12 -> 0.8350158228 | B28: =A28*C28 -> 1.670031646 | C28: 2 | D28: 3.67 | G28: 0.835 | I28: 0.1349 | L28: 0.1349 | M28: 0.1349 | O28: =I28*$L$25 -> 0.1349 | P28: =I51 -> 0.1718 | Q28: =(O28/P28) -> 0.7852153667 | S28: 0.1413
A29: =L29*K$22*SQRT(4*85*B$21/32.2)/12 -> 0.7972575091 | B29: 2.391772527 | C29: 3 | D29: 4.3917 | G29: 0.7972 | I29: 0.1288 | L29: 0.1288 | M29: 0.1288 | O29: 0.1288 | P29: 0.1745 | Q29: 0.7381088825 | S29: 0.135 | T29: 3171 compared to 3075 c-zeta target 110_61_31_a = x 1.179
A30: 0.7700220042 | B30: 3.080088017 | C30: 4 | D30: 5.0801 | G30: 0.77 | I30: 0.1244 | L30: 0.1244 | M30: 0.1244 | O30: 0.1244 | P30: 0.1718 | Q30: 0.7240977881 | S30: 0.1304 | T30: 3304 compared to 3075 c-zeta target 110_61_31_a = x 1.288
A31: 0.7477384092 | B31: 3.738692046 | C31: 5 | D31: 5.7387 | G31: 0.7477 | I31: 0.1208 | L31: 0.1208 | M31: 0.1208 | O31: 0.1208 | P31: 0.1669 | Q31: 0.7237866986 | S31: 0.1266 | T31: (1.179 + 1.288) / 2 = 1.23
A32: 0.6555090855 | B32: 6.555090855 | C32: 10 | D32: 8.5551 | G32: 0.6555 | I32: 0.1059 | L32: 0.1059 | M32: 0.1059 | O32: 0.1059 | P32: 0.1327 | Q32: 0.7980406933 | S32: 0.111
A33: 0.5354252682 | B33: 10.70850536 | C33: 20 | D33: 12.7085 | G33: 0.5354 | I33: 0.0865 | L33: 0.0865 | M33: 0.0865 | O33: 0.0865 | P33: 0.1052 | Q33: 0.822243346 | S33: 0.0906
A34: 0.5013808869 | B34: 15.04142661 | C34: 30 | D34: 17.0414 | G34: 0.5014 | I34: 0.081 | L34: 0.081 | M34: 0.081 | O34: 0.081 | P34: 0.0975 | Q34: 0.8307692308 | S34: 0.0848
A35: 0.4945720107 | B35: 19.78288043 | C35: 40 | D35: 21.7829 | G35: 0.4946 | I35: 0.0799 | L35: 0.0799 | M35: 0.0799 | O35: 0.0799 | P35: 0.0935 | Q35: 0.8545454545 | S35: 0.0836
A36: =L36*K$22*SQRT(4*85*B$21/32.2)/12 -> 0.4989049319 | B36: 24.9452466 | C36: 50 | D36: 26.9452 | G36: 0.4989 | I36: 0.0806 | L36: 0.0806 | M36: 0.0806 | O36: 0.0806 | P36: 0.0911 | Q36: 0.8847420417 | S36: 0.0845
A37: =L37*K$22*SQRT(4*85*B$21/32.2)/12 -> 0.5081897632 | B37: =A37*C37 -> 30.49138579 | C37: 60 | D37: 32.4914 | G37: 0.5082 | I37: 0.0821 | L37: 0.0821 | M37: 0.0821 | O37: 0.0821 | P37: =I60 -> 0.0894 | Q37: =(O37/P37) -> 0.918344519 | S37: 0.086
A38: 0.5205695382 | B38: =A38*C38 -> 36.43986767 | C38: 70 | D38: 38.4399 | G38: 0.5206 | I38: 0.0841 | L38: 0.0841 | M38: 0.0841 | O38: 0.0841 | P38: =I61 -> 0.0881 | Q38: 0.9545970488 | S38: 0.0881
A44: k.spring | B44: =K44*2.20462*25.4*12 -> 645.089449 | C44: 3210 | D44: 2015 XCF 350 | F44: 5-18-18 | H44: macro | I44: spr = | K44: 0.96 | L44: 'adjust' value = 1.000
H45: done | I45: levratio = | K45: 0.9
C46: ips | D46: co wogas | E46: reb | F46: r-zeta | G46: cDamp | H46: czeta | I46: c-zeta | J46: c-zeta % | K46: r/c | L46: 2
A47: cDamp | B47: co wogas | G47: coeff | I47: aver b x 1.0 | K47: ratio | M47: extra
A48: coeff | D48: [target] | G48: [target] | I48: [target] | L48: 1 | M48: copy | O48: 1
A49: [calc] | B49: [calc] | C49: 0 | L49: [adjust]
A50: =L50*K$22*SQRT(4*85*B$21/32.2)/12 -> 0.9123894165 | B50: =A50*C50 -> 0.9123894165 | C50: 1 | D50: 2.9124 | G50: 0.9124 | I50: 0.1474 | L50: 0.1474 | M50: 0.1474 | O50: =I50*$L$48 -> 0.1474
A51: =L51*K$22*SQRT(4*85*B$21/32.2)/12 -> 1.063422671 | B51: =A51*C51 -> 2.126845343 | C51: 2 | D51: 4.1269 | G51: 1.0635 | I51: 0.1718 | L51: 0.1718 | M51: 0.1718 | O51: =I51*$L$48 -> 0.1718
A52: =L52*K$22*SQRT(4*85*B$21/32.2)/12 -> 1.080135368 | B52: 3.240406103 | C52: 3 | D52: 5.2404 | G52: 1.0801 | I52: 0.1745 | L52: 0.1745 | M52: 0.1745 | O52: 0.1745
A53: 1.063422671 | B53: 4.253690685 | C53: 4 | D53: 6.2537 | G53: 1.0634 | I53: 0.1718 | L53: 0.1718 | M53: 0.1718 | O53: 0.1718
A54: 1.033092223 | B54: 5.165461113 | C54: 5 | D54: 7.1655 | G54: 1.0331 | I54: 0.1669 | L54: 0.1669 | M54: 0.1669 | O54: 0.1669
A55: 0.8213980703 | B55: 8.213980703 | C55: 10 | D55: 10.214 | G55: 0.8214 | I55: 0.1327 | L55: 0.1327 | M55: 0.1327 | O55: 0.1327
A56: 0.6511761643 | B56: 13.02352329 | C56: 20 | D56: 15.0236 | G56: 0.6512 | I56: 0.1052 | L56: 0.1052 | M56: 0.1052 | O56: 0.1052
A57: 0.6035140306 | B57: 18.10542092 | C57: 30 | D57: 20.1054 | G57: 0.6035 | I57: 0.0975 | L57: 0.0975 | M57: 0.0975 | O57: 0.0975
A58: 0.5787544806 | B58: 23.15017922 | C58: 40 | D58: 25.1502 | G58: 0.5788 | I58: 0.0935 | L58: 0.0935 | M58: 0.0935 | O58: 0.0935
A59: =L59*K$22*SQRT(4*85*B$21/32.2)/12 -> 0.5638987506 | B59: 28.19493753 | C59: 50 | D59: 30.1949 | G59: 0.5639 | I59: 0.0911 | L59: 0.0911 | M59: 0.0911 | O59: 0.0911
A60: =L60*K$22*SQRT(4*85*B$21/32.2)/12 -> 0.5533759419 | B60: =A60*C60 -> 33.20255651 | C60: 60 | D60: 35.2026 | G60: 0.5534 | I60: 0.0894 | L60: 0.0894 | M60: 0.0894 | O60: 0.0894
A61: 0.5453290881 | B61: =A61*C61 -> 38.17303617 | C61: 70 | D61: 40.1731 | G61: 0.5453 | I61: 0.0881 | L61: 0.0881 | M61: 0.0881 | O61: 0.0881
C122: end

Sheet xxxc-zeta_graph_02
A1: 64 | B1: 64 | C1: 48 | D1: 64 | E1: 74 | F1: 74 | G1: 52 | H1: 58 | I1: 114 | J1: 64 | K1: 56 | L1: 56 | M1: 56 | R1: zeta_shcrz_adj_targ_chart.xlsm
A2: 9-10-18
A3: This tab is designed to compare 'target to target' as found on openLevSh_crz_adj_target.php.
A4: Use this page to compare two c-zeta targets.
B5: just pick any two and compare
A9: This is copied from shock c-zeta. Save in case we want to us it.
A20: k.spring | B20: =K20*2.20462*25.4*12 -> 2822.266339 | C20: 3171 | D20: 2016 SXF 250 | F20: 4-25-18 | H20: macro | I20: spr = | K20: 4.2
C21: id 8 | D21: 3171 Hunter Hargis trendline v5 | H21: done | I21: levratio = | K21: 2.46
C22: ips | D22: co wogas | E22: ro wogas | F22: r-zeta | G22: cDamp | H22: czeta | I22: c-zeta | J22: c-zeta % | K22: r/c | L22: 1
A23: cDamp | B23: co wogas | D23: x 1 | E23: r-zeta = 1.00 | F23: r-zeta = 1.00 | G23: coeff | I23: 135_76_36_a x 1 | J23: act/targ | K23: ratio
A24: coeff | B24: target | D24: [actual] | E24: [actual] | F24: [actual] | G24: [actual] | H24: [actual] | I24: [target] | J24: [act/targ] | K24: [actual] | L24: 1
A25: [calc] | B25: [calc] | C25: 0
A26: =H26*K$21*SQRT(4*85*B$20/32.2)/12 -> 47.81010866 | B26: =A26*C26 -> 47.81010866 | C26: 1 | D26: 47.81 | E26: -35 | F26: 0.989 | G26: 48 | H26: 1.351 | I26: =(L26*$L$24) -> 1.351 | J26: 1 | K26: 0.73 | L26: 1.351
A27: =H27*K$21*SQRT(4*85*B$20/32.2)/12 -> 36.20262114 | B27: =A27*C27 -> 72.40524228 | C27: 2 | D27: 72.33 | E27: -65 | F27: 0.918 | G27: 36 | H27: 1.023 | I27: =(L27*$L$24) -> 1.022 | J27: 1 | K27: 0.9 | L27: 1.022
A28: 31.28359442 | B28: 93.85078325 | C28: 3 | D28: 93.96 | E28: -89 | F28: 0.839 | G28: 31 | H28: 0.884 | I28: 0.885 | J28: 1 | K28: 0.95 | L28: 0.885
A29: 28.59405463 | B29: 114.3762185 | C29: 4 | D29: 114.23 | E29: -111 | F29: 0.786 | G29: 29 | H29: 0.808 | I29: 0.807 | J29: 1 | K29: 0.97 | L29: 0.807
A30: 26.78923187 | B30: 133.9461594 | C30: 5 | D30: 133.95 | E30: -131 | F30: 0.74 | G30: 27 | H30: 0.757 | I30: 0.757 | J30: 1 | K30: 0.98 | L30: 0.757
A31: 21.09165415 | B31: 210.9165415 | C31: 10 | D31: 211.27 | E31: -248 | F31: 0.701 | G31: 21 | H31: 0.596 | I31: 0.597 | J31: 1 | K31: 1.17 | L31: 0.597
A32: 16.8096237 | B32: 336.1924739 | C32: 20 | D32: 336.19 | E32: -495 | F32: 0.701 | G32: 17 | H32: 0.475 | I32: 0.475 | J32: 1 | K32: 1.47 | L32: 0.475
A33: 15.00480094 | B33: 450.1440283 | C33: 30 | D33: 449.08 | E33: -743 | F33: 0.701 | G33: 15 | H33: 0.424 | I33: 0.423 | J33: 1 | K33: 1.65 | L33: 0.423
A34: 13.80158577 | B34: 552.0634309 | C34: 40 | D34: 550.65 | E34: -991 | F34: 0.701 | G34: 14 | H34: 0.39 | I34: 0.389 | J34: 1 | K34: 1.8 | L34: 0.389
A35: 12.81070269 | B35: 640.5351346 | C35: 50 | D35: 640.54 | E35: -1239 | F35: 0.701 | G35: 13 | H35: 0.362 | I35: 0.362 | J35: 1 | K35: 1.93 | L35: 0.362
A40: k.spring | B40: =K40*2.20462*25.4*12 -> 3124.652018 | C40: 3304 | D40: 2018 SXF 350 | F40: 8-22-18 | H40: macro | I40: spr = | K40: 4.65
C41: id 9 | D41: 3304 Cody Harris trendline v6 | H41: done | I41: levratio = | K41: 2.46
C42: ips | D42: co wogas | E42: ro wogas | F42: r-zeta | G42: cDamp | H42: czeta | I42: c-zeta | J42: c-zeta % | K42: r/c | L42: 2 | M42: c-zeta | N42: c-zeta
A43: cDamp | B43: co wogas | D43: x 1 | E43: r-zeta = 1.00 | F43: r-zeta = 1.00 | G43: coeff | I43: 132_77_39_b x 1 | J43: act/targ | K43: ratio | M43: actual | N43: target
A44: coeff | B44: target | D44: [actual] | E44: [actual] | F44: [actual] | G44: [actual] | H44: [actual] | I44: [target] | J44: [act/targ] | K44: [actual] | L44: 1.1 | M44: % | N44: %
A45: [calc] | B45: [calc] | C45: 0
A46: =I46*K$41*SQRT(4*85*B$40/32.2)/12 -> 53.9441896 | B46: =A46*C46 -> 53.9441896 | C46: 1 | D46: 49.04 | E46: -37 | F46: 0.994 | G46: 49 | H46: 1.316 | I46: =(L46*$L$44) -> 1.4487 | J46: 1 | K46: 0.75 | L46: 1.317 | M46: =H26/H46 -> 1.026595745 | N46: =I26/I46 -> 0.9325602264
A47: =I47*K$41*SQRT(4*85*B$40/32.2)/12 -> 43.04885594 | B47: =A47*C47 -> 86.09771187 | C47: 2 | D47: 78.27 | E47: -68 | F47: 0.913 | G47: 39 | H47: 1.05 | I47: =(L47*$L$44) -> 1.1561 | J47: 1 | K47: 0.87 | L47: 1.051 | M47: =H27/H47 -> 0.9742857143 | N47: =I27/I47 -> 0.8840065738
A48: 37.68310891 | B48: 113.0493267 | C48: 3 | D48: 102.77 | E48: -94 | F48: 0.841 | G48: 34 | H48: 0.921 | I48: 1.012 | J48: 1 | K48: 0.91 | L48: 0.92 | M48: 0.9598262758 | N48: 0.8745059289
A49: 34.11959752 | B49: 136.4783901 | C49: 4 | D49: 124.07 | E49: -117 | F49: 0.787 | G49: 31 | H49: 0.833 | I49: 0.9163 | J49: 1 | K49: 0.94 | L49: 0.833 | M49: 0.9699879952 | N49: 0.8807159227
A50: 31.45720396 | B50: 157.2860198 | C50: 5 | D50: 142.99 | E50: -138 | F50: 0.741 | G50: 29 | H50: 0.768 | I50: 0.8448 | J50: 1 | K50: 0.97 | L50: 0.768 | M50: 0.9856770833 | N50: 0.8960700758
A51: 24.65786039 | B51: 246.5786039 | C51: 10 | D51: 224.16 | E51: -261 | F51: 0.701 | G51: 22 | H51: 0.602 | I51: 0.6622 | J51: 1 | K51: 1.16 | L51: 0.602 | M51: 0.9900332226 | N51: 0.9015403201
A52: 20.11131138 | B52: 402.2262277 | C52: 20 | D52: 365.66 | E52: -521 | F52: 0.701 | G52: 18 | H52: 0.491 | I52: 0.5401 | J52: 1 | K52: 1.42 | L52: 0.491 | M52: 0.967413442 | N52: 0.8794667654
A53: 18.18619604 | B53: 545.5858811 | C53: 30 | D53: 495.99 | E53: -782 | F53: 0.701 | G53: 17 | H53: 0.443 | I53: 0.4884 | J53: 1 | K53: 1.58 | L53: 0.444 | M53: 0.9571106095 | N53: 0.8660933661
A54: 16.99835891 | B54: 679.9343564 | C54: 40 | D54: 618.12 | E54: -1043 | F54: 0.701 | G54: 16 | H54: 0.416 | I54: 0.4565 | J54: 1 | K54: 1.69 | L54: 0.415 | M54: 0.9375 | N54: 0.852135816
A55: 16.09724109 | B55: 804.8620544 | C55: 50 | D55: 731.69 | E55: -1303 | F55: 0.701 | G55: 15 | H55: 0.392 | I55: 0.4323 | J55: 1 | K55: 1.78 | L55: 0.393 | M55: 0.9234693878 | N55: 0.8373814481
C115: end

Sheet xxxc-zeta_graph_03
A1: 64 | B1: 64 | C1: 48 | D1: 64 | E1: 74 | F1: 74 | G1: 52 | H1: 58 | I1: 114 | J1: 64 | K1: 56 | L1: 56 | M1: 56 | R1: zeta_shcrz_adj_targ_chart.xlsm
A2: 9-10-18
A3: This tab is designed to compare 'target to target' as found on openLevSh_crz_adj_target.php.
A4: Use this page to compare two c-zeta targets.
B5: just pick any two and compare
B7: On _03 we will compare the same stack at with different factor numbers to see if co wogas has linear increase.
A9: This is copied from shock c-zeta. Save in case we want to us it.
A20: k.spring | B20: =K20*2.20462*25.4*12 -> 2990.258383 | C20: 3205 | D20: 2018 SXF 250 | F20: 5-17-18 | H20: macro | I20: spr = | K20: 4.45
C21: id 11 | D21: 3171 and 3304 aver | H21: done | I21: levratio = | K21: 2.46
C22: ips | D22: co wogas | E22: ro wogas | F22: r-zeta | G22: cDamp | H22: czeta | I22: c-zeta | J22: c-zeta % | K22: r/c | L22: 1
A23: cDamp | B23: co wogas | D23: x 1.2 | E23: r-zeta = 1.00 | F23: r-zeta = 1.00 | G23: coeff | I23: 138_77_38_e x 1.2 | J23: act/targ | K23: ratio
A24: coeff | B24: target | D24: [actual] | E24: [actual] | F24: [actual] | G24: [actual] | H24: [actual] | I24: [target] | J24: [act/targ] | K24: [actual] | L24: 1
A25: [calc] | B25: [calc] | C25: 0
A26: =H26*K$21*SQRT(4*85*B$20/32.2)/12 -> 60.3954565 | B26: =A26*C26 -> 60.3954565 | C26: 1 | D26: 60.41 | E26: -36 | F26: 0.988 | G26: 60 | H26: 1.658 | I26: =(L26*$L$24) -> 1.658 | J26: 1 | K26: 0.6 | L26: 1.658
A27: =H27*K$21*SQRT(4*85*B$20/32.2)/12 -> 46.51688658 | B27: =A27*C27 -> 93.03377316 | C27: 2 | D27: 92.93 | E27: -67 | F27: 0.92 | G27: 47 | H27: 1.277 | I27: =(L27*$L$24) -> 1.276 | J27: 1 | K27: 0.72 | L27: 1.276
A28: 40.10578867 | B28: 120.317366 | C28: 3 | D28: 120.25 | E28: -92 | F28: 0.843 | G28: 40 | H28: 1.101 | I28: 1.1 | J28: 1 | K28: 0.77 | L28: 1.1
A29: 36.20813255 | B29: 144.8325302 | C29: 4 | D29: 144.6 | E29: -114 | F29: 0.782 | G29: 36 | H29: 0.994 | I29: 0.992 | J29: 1 | K29: 0.79 | L29: 0.992
A30: 33.51255729 | B30: 167.5627864 | C30: 5 | D30: 167.42 | E30: -135 | F30: 0.741 | G30: 34 | H30: 0.92 | I30: 0.919 | J30: 1 | K30: 0.81 | L30: 0.919
A31: 26.40935221 | B31: 264.0935221 | C31: 10 | D31: 264.02 | E31: -255 | F31: 0.7 | G31: 26 | H31: 0.725 | I31: 0.725 | J31: 1 | K31: 0.97 | L31: 0.725
A32: 21.20033515 | B32: 424.0067031 | C32: 20 | D32: 424.01 | E32: -510 | F32: 0.7 | G32: 21 | H32: 0.582 | I32: 0.582 | J32: 1 | K32: 1.2 | L32: 0.582
A33: 19.01473359 | B33: 570.4420077 | C33: 30 | D33: 570.44 | E33: -765 | F33: 0.7 | G33: 19 | H33: 0.522 | I33: 0.522 | J33: 1 | K33: 1.34 | L33: 0.522
A34: 17.59409258 | B34: 703.763703 | C34: 40 | D34: 704.64 | E34: -1020 | F34: 0.7 | G34: 18 | H34: 0.483 | I34: 0.484 | J34: 1 | K34: 1.45 | L34: 0.484
A35: 16.50129179 | B35: 825.0645897 | C35: 50 | D35: 826.16 | E35: -1275 | F35: 0.7 | G35: 17 | H35: 0.453 | I35: 0.454 | J35: 1 | K35: 1.54 | L35: 0.454
A40: k.spring | B40: =K40*2.20462*25.4*12 -> 2990.258383 | C40: 3205 | D40: 2018 SXF 250 | F40: 5-17-18 | H40: macro | I40: spr = | K40: 4.45
C41: id 11 | D41: 3171 and 3304 aver | H41: done | I41: levratio = | K41: 2.46
C42: ips | D42: co wogas | E42: ro wogas | F42: r-zeta | G42: cDamp | H42: czeta | I42: c-zeta | J42: c-zeta % | K42: r/c | L42: 2 | M42: c-zeta | N42: c-zeta | O42: co wogas
A43: cDamp | B43: co wogas | D43: x 1 | E43: r-zeta = 1.00 | F43: r-zeta = 1.00 | G43: coeff | I43: 138_77_38_e x 1 | J43: act/targ | K43: ratio | M43: actual | N43: target
A44: coeff | B44: target | D44: [actual] | E44: [actual] | F44: [actual] | G44: [actual] | H44: [actual] | I44: [target] | J44: [act/targ] | K44: [actual] | L44: 1 | M44: % | N44: % | O44: %
A45: [calc] | B45: [calc] | C45: 0
A46: =I46*K$41*SQRT(4*85*B$40/32.2)/12 -> 50.34168932 | B46: =A46*C46 -> 50.34168932 | C46: 1 | D46: 50.34 | E46: -36 | F46: 0.988 | G46: 50 | H46: 1.381 | I46: =(L46*$L$44) -> 1.382 | J46: 1 | K46: 0.72 | L46: 1.382 | M46: =H26/H46 -> 1.20057929 | N46: =I26/I46 -> 1.199710564 | O46: =D26/D46 -> 1.20003973
A47: =I47*K$41*SQRT(4*85*B$40/32.2)/12 -> 38.72157434 | B47: =A47*C47 -> 77.44314869 | C47: 2 | D47: 77.44 | E47: -67 | F47: 0.92 | G47: 39 | H47: 1.062 | I47: =(L47*$L$44) -> 1.063 | J47: 1 | K47: 0.87 | L47: 1.063 | M47: =H27/H47 -> 1.202448211 | N47: 1.200376294 | O47: =D27/D47 -> 1.200025826
A48: 33.40327721 | B48: 100.2098316 | C48: 3 | D48: 100.21 | E48: -92 | F48: 0.843 | G48: 33 | H48: 0.917 | I48: 0.917 | J48: 1 | K48: 0.92 | L48: 0.917 | M48: 1.200654308 | N48: 1.199563795 | O48: 1.199980042
A49: 30.12487487 | B49: 120.4994995 | C49: 4 | D49: 120.5 | E49: -114 | F49: 0.782 | G49: 30 | H49: 0.826 | I49: 0.827 | J49: 1 | K49: 0.95 | L49: 0.827 | M49: 1.203389831 | N49: 1.199516324 | O49: 1.2
A50: 27.90284661 | B50: 139.5142331 | C50: 5 | D50: 139.51 | E50: -135 | F50: 0.741 | G50: 28 | H50: 0.766 | I50: 0.766 | J50: 1 | K50: 0.97 | L50: 0.766 | M50: 1.201044386 | N50: 1.199738903 | O50: 1.200057344
A51: 22.00172239 | B51: 220.0172239 | C51: 10 | D51: 220.02 | E51: -255 | F51: 0.7 | G51: 22 | H51: 0.604 | I51: 0.604 | J51: 1 | K51: 1.16 | L51: 0.604 | M51: 1.200331126 | N51: 1.200331126 | O51: 1.19998182
A52: 17.66694596 | B52: 353.3389192 | C52: 20 | D52: 353.34 | E52: -510 | F52: 0.7 | G52: 18 | H52: 0.486 | I52: 0.485 | J52: 1 | K52: 1.44 | L52: 0.485 | M52: 1.197530864 | N52: 1.2 | O52: 1.20000566
A53: 15.84561133 | B53: 475.3683398 | C53: 30 | D53: 475.37 | E53: -765 | F53: 0.7 | G53: 16 | H53: 0.434 | I53: 0.435 | J53: 1 | K53: 1.61 | L53: 0.435 | M53: 1.202764977 | N53: 1.2 | O53: 1.199991586
A54: 14.67995716 | B54: 587.1982864 | C54: 40 | D54: 587.2 | E54: -1020 | F54: 0.7 | G54: 15 | H54: 0.404 | I54: 0.403 | J54: 1 | K54: 1.74 | L54: 0.403 | M54: 1.195544554 | N54: 1.200992556 | O54: 1.2
A55: 13.76928984 | B55: 688.4644921 | C55: 50 | D55: 688.46 | E55: -1275 | F55: 0.7 | G55: 14 | H55: 0.379 | I55: 0.378 | J55: 1 | K55: 1.85 | L55: 0.378 | M55: 1.19525066 | N55: 1.201058201 | O55: 1.20001162
C115: end

Sheet Sheet3
